bitfinex/quotes_BTCUSD_20230107
["timestamp","ask_amount","ask_price","bid_price","bid_amount"]
[1673132404229,0.26564284,16948.0,16947.0,1.74044454]
[1673132404983,0.26564284,16948.0,16947.0,1.80044454]
[1673132405318,0.26564284,16948.0,16947.0,1.74044454]
[1673132405498,0.27764284,16948.0,16947.0,1.80044454]
[1673132406511,0.45468325,16948.0,16947.0,1.80044454]
[1673132406780,0.45468325,16948.0,16947.0,2.28886754]
[1673132407008,0.45468325,16948.0,16947.0,1.80044454]
[1673132415729,0.45460002,16948.0,16947.0,1.80044454]
[1673132417511,0.80867374,16948.0,16947.0,1.80044454]
[1673132418032,0.45460002,16948.0,16947.0,1.80044454]
[1673132431090,1.06223202,16948.0,16947.0,1.80044454]
[1673132431585,0.45460002,16948.0,16947.0,1.80044454]
[1673132432323,0.85460002,16948.0,16947.0,1.80011396]
[1673132432949,0.45460002,16948.0,16947.0,1.80011396]
[1673132434396,0.80867374,16948.0,16947.0,1.80011396]
[1673132436330,0.80870014,16948.0,16947.0,1.80011396]
[1673132436592,0.80870005,16948.0,16947.0,1.80011396]
[1673132437874,0.45462633,16948.0,16947.0,1.80011396]
[1673132438083,0.80870005,16948.0,16947.0,1.80011396]
[1673132439301,0.63163333,16948.0,16947.0,1.80011396]
[1673132439553,0.80871825,16948.0,16947.0,1.80011396]
[1673132440322,0.63163333,16948.0,16947.0,1.80011396]
[1673132440838,1.23926533,16948.0,16947.0,1.240124]
[1673132441320,0.63163333,16948.0,16947.0,1.240124]
[1673132446349,0.63163333,16948.0,16947.0,0.65005]
[1673132450844,1.07437733,16948.0,16947.0,0.65005]
[1673132451838,0.63163333,16948.0,16947.0,0.65005]
[1673132452151,1.07437733,16948.0,16947.0,0.65005]
[1673132452903,0.63163333,16948.0,16947.0,0.65005]
[1673132461253,0.80881772,16948.0,16947.0,0.65005]
[1673132461499,1.41644972,16948.0,16947.0,0.65005]
[1673132462461,0.80881772,16948.0,16947.0,0.65005]
[1673132463730,1.41644972,16948.0,16947.0,0.65005]
[1673132464226,1.41644972,16948.0,16947.0,0.64994891]
[1673132465026,0.80881772,16948.0,16947.0,0.64994891]
[1673132469585,1.41644972,16948.0,16947.0,0.64994891]
[1673132470595,1.41644972,16948.0,16947.0,0.06]
[1673132471545,0.80881772,16948.0,16947.0,0.06]
[1673132471804,1.20881772,16948.0,16947.0,0.06]
[1673132472062,2.33083463,16948.0,16947.0,0.06]
[1673132472308,3.39999078,16948.0,16947.0,0.06]
[1673132472817,3.26886815,16948.0,16947.0,0.06]
[1673132476635,2.73753411,16948.0,16947.0,0.06]
[1673132480311,2.70212056,16948.0,16947.0,0.06]
[1673132484295,3.14386142,16948.0,16947.0,0.06]
[1673132485057,3.14386142,16948.0,16947.0,0.055]
[1673132485281,2.70212056,16948.0,16947.0,0.055]
[1673132494269,3.2334546,16948.0,16947.0,0.055]
[1673132494536,3.61100861,16948.0,16947.0,0.055]
[1673132495544,2.70212056,16948.0,16947.0,0.055]
[1673132498059,3.2334546,16948.0,16947.0,0.055]
[1673132498321,3.8234946,16948.0,16947.0,0.055]
[1673132508413,3.29216056,16948.0,16947.0,0.055]
[1673132508882,3.29216056,16948.0,16947.0,0.0549347]
[1673132529310,3.21554384,16948.0,16947.0,0.0549347]
[1673132531041,2.62550384,16948.0,16947.0,0.0549347]
[1673132532522,2.62550384,16948.0,16947.0,0.05486794]
[1673132539751,2.09448856,16948.0,16947.0,0.05486794]
[1673132539968,3.29216056,16948.0,16947.0,0.05486794]
[1673132544904,3.29216056,16948.0,16947.0,0.04986794]
[1673132546604,2.09448856,16948.0,16947.0,0.04986794]
[1673132546859,0.5961524,16948.0,16947.0,0.04986794]
[1673132547110,1.12101139,16949.0,16947.0,0.55129092]
[1673132547111,1.10318939,16949.0,16947.0,0.55129092]
[1673132547366,0.79640551,16948.0,16947.0,0.55129092]
[1673132548117,0.44253454,16948.0,16947.0,0.55129092]
[1673132548911,0.44253454,16948.0,16947.0,0.04986794]
[1673132549164,1.06167875,16948.0,16947.0,0.53829294]
[1673132549408,0.61914421,16948.0,16947.0,1.13417306]
[1673132549679,0.4422546,16948.0,16947.0,1.72424706]
[1673132550176,0.17690604,16948.0,16947.0,1.56823635]
[1673132550439,0.4422546,16949.0,16947.0,3.33021427]
[1673132550706,0.17690604,16950.0,16948.0,1.69267623]
[1673132550960,0.00015,16950.0,16949.0,0.92745625]
[1673132551470,0.49035524,16951.0,16950.0,0.4]
[1673132551471,0.00325064,16951.0,16950.0,0.4]
[1673132551992,0.17690604,16952.0,16950.0,1.46327764]
[1673132552254,0.17690604,16952.0,16950.0,0.57494964]
[1673132552510,0.4422546,16952.0,16950.0,0.57494964]
[1673132553281,0.17690604,16952.0,16950.0,0.57494964]
[1673132554035,0.17690604,16952.0,16951.0,0.00022712]
[1673132554320,0.17690604,16952.0,16951.0,0.64321909]
[1673132554588,0.18890604,16952.0,16951.0,0.64321909]
[1673132555113,0.021,16952.0,16951.0,0.70421909]
[1673132556894,0.021,16952.0,16951.0,0.70399197]
[1673132556895,0.19790604,16952.0,16951.0,0.70399197]
[1673132557501,0.19790604,16952.0,16951.0,0.70421909]
[1673132557912,0.19790604,16952.0,16951.0,0.70399197]
[1673132558168,0.021,16952.0,16951.0,0.70399197]
[1673132571542,0.0208864,16952.0,16951.0,0.70399197]
[1673132583134,0.19779244,16952.0,16951.0,0.70399197]
[1673132585076,0.463141,16952.0,16951.0,0.70399197]
[1673132587240,0.8167869,16952.0,16951.0,0.70399197]
[1673132587490,0.64003061,16952.0,16951.0,0.70399197]
[1673132589229,0.46342094,16952.0,16951.0,0.70399197]
[1673132589990,0.81758415,16952.0,16951.0,0.70399197]
[1673132590742,0.46342094,16952.0,16951.0,0.70399197]
[1673132591501,0.81757075,16952.0,16951.0,0.70399197]
[1673132591747,0.81770002,16952.0,16951.0,1.29392697]
[1673132591994,0.64063548,16952.0,16951.0,1.29392697]
[1673132592245,0.81770049,16952.0,16951.0,1.78222397]
[1673132592500,0.81770049,16952.0,16951.0,1.29392697]
[1673132592746,0.46355068,16952.0,16951.0,1.29392697]
[1673132593005,0.64063548,16952.0,16951.0,1.29392697]
[1673132593258,0.64063548,16952.0,16951.0,1.29383192]
[1673132593531,0.46349954,16952.0,16951.0,1.29383192]
[1673132593759,0.81764935,16952.0,16951.0,1.29383192]
[1673132594004,0.64063548,16952.0,16951.0,1.29383192]
[1673132598747,0.46347202,16952.0,16951.0,1.29383192]
[1673132601241,0.19787275,16952.0,16951.0,1.88376692]
[1673132601503,0.0208864,16952.0,16951.0,3.39998788]
[1673132601745,0.44258562,16953.0,16951.0,3.33898812]
[1673132602016,0.44258562,16953.0,16951.0,2.85069212]
[1673132602276,0.44258562,16953.0,16952.0,0.488264]
[1673132602543,0.79673543,16953.0,16951.0,1.82273692]
[1673132602796,0.79673543,16953.0,16952.0,0.9899]
[1673132603109,0.44258562,16953.0,16952.0,1.078163]
[1673132603310,0.44558562,16953.0,16952.0,0.6029]
[1673132605359,0.17998635,16953.0,16952.0,0.6029]
[1673132605873,0.62274908,16953.0,16952.0,0.6029]
[1673132606132,0.79968435,16953.0,16952.0,0.013]
[1673132606384,0.90271144,16953.0,16952.0,0.013]
[1673132606641,2.61043957,16953.0,16952.0,0.013]
[1673132606928,2.64585312,16953.0,16952.0,0.013]
[1673132607144,2.11487873,16953.0,16952.0,0.013]
[1673132607400,2.64544456,16953.0,16952.0,0.013]
[1673132607653,2.11487873,16953.0,16952.0,0.013]
[1673132608660,2.70474473,16953.0,16952.0,0.013]
[1673132609413,3.23519731,16953.0,16952.0,0.013]
[1673132610754,3.82506331,16953.0,16952.0,0.013]
[1673132610946,3.62796772,16953.0,16952.0,0.013]
[1673132612456,3.62790257,16953.0,16952.0,0.013]
[1673132613470,3.62790257,16953.0,16952.0,0.01293515]
[1673132618667,3.09751381,16953.0,16952.0,0.01293515]
[1673132619181,2.94949499,16953.0,16952.0,0.01293515]
[1673132619699,2.73256136,16953.0,16952.0,0.01293515]
[1673132620480,2.12492936,16953.0,16952.0,0.01293515]
[1673132622502,1.62457918,16953.0,16952.0,0.01293515]
[1673132623330,1.03471318,16953.0,16952.0,0.01293515]
[1673132628159,1.38822168,16953.0,16952.0,0.01293515]
[1673132629666,0.79835568,16953.0,16952.0,0.01293515]
[1673132629924,0.79835568,16953.0,16952.0,0.59871167]
[1673132630436,1.06347781,16953.0,16952.0,0.59871167]
[1673132630704,0.62163063,16953.0,16952.0,0.59871167]
[1673132630956,0.62162912,16953.0,16952.0,0.59871167]
[1673132631208,1.0634763,16953.0,16952.0,0.59871167]
[1673132631455,0.62156436,16953.0,16952.0,0.59871167]
[1673132640602,0.62156436,16953.0,16952.0,0.01293515]
[1673132640849,0.79829092,16953.0,16952.0,0.01293515]
[1673132651255,0.44478242,16953.0,16952.0,0.01293515]
[1673132651494,0.79857203,16953.0,16952.0,0.01293515]
[1673132651742,0.44478242,16953.0,16952.0,0.01293515]
[1673132652208,0.79857158,16953.0,16952.0,0.01293515]
[1673132652456,0.44478242,16953.0,16952.0,0.01293515]
[1673132652979,0.84478242,16953.0,16952.0,0.01281941]
[1673132656732,0.43478242,16953.0,16952.0,0.01281941]
[1673132659838,1.08193885,16954.0,16952.0,0.01281941]
[1673132660127,1.08193885,16954.0,16952.0,0.69792642]
[1673132660389,0.3540433,16953.0,16952.0,0.69792642]
[1673132660915,0.3540433,16953.0,16952.0,0.68510701]
[1673132661158,0.3540433,16953.0,16952.0,0.69210701]
[1673132661433,0.3540433,16953.0,16952.0,0.68510701]
[1673132661682,0.3570433,16953.0,16952.0,0.70010701]
[1673132661947,0.3570433,16953.0,16952.0,1.29000701]
[1673132662182,0.3570433,16953.0,16952.0,1.77827001]
[1673132663196,0.62253918,16953.0,16952.0,1.77827001]
[1673132663413,0.3570433,16953.0,16952.0,1.29000701]
[1673132663634,1.06507134,16953.0,16952.0,1.29000701]
[1673132663874,0.62255362,16953.0,16952.0,1.29000701]
[1673132664130,1.06507134,16953.0,16952.0,1.29000701]
[1673132664378,0.62255362,16953.0,16952.0,1.29000701]
[1673132675318,0.62255362,16953.0,16952.0,0.015]
[1673132675572,1.40719302,16953.0,16952.0,0.015]
[1673132675820,0.79956102,16953.0,16952.0,0.015]
[1673132677097,0.44551772,16953.0,16952.0,0.015]
[1673132677820,0.44544144,16953.0,16952.0,0.015]
[1673132679340,0.79936812,16953.0,16952.0,0.015]
[1673132681121,1.2997183,16953.0,16952.0,0.015]
[1673132681375,0.94579162,16953.0,16952.0,0.015]
[1673132681625,0.44544144,16953.0,16952.0,0.015]
[1673132682120,0.94579162,16953.0,16952.0,0.015]
[1673132682381,0.44544144,16953.0,16952.0,0.015]
[1673132684104,0.09433372,16953.0,16952.0,0.015]
[1673132685138,0.70196572,16953.0,16952.0,0.015]
[1673132685389,1.10196572,16953.0,16952.0,0.015]
[1673132686429,1.63235448,16953.0,16952.0,0.015]
[1673132686949,3.71653431,16953.0,16952.0,0.015]
[1673132687207,4.07615782,16953.0,16952.0,0.015]
[1673132687473,4.37615782,16953.0,16952.0,0.015]
[1673132687725,4.37615782,16953.0,16948.0,1.08268779]
[1673132687726,4.3732341,16953.0,16948.0,1.08268779]
[1673132688039,0.61938916,16949.0,16948.0,0.58233761]
[1673132688257,1.46469905,16949.0,16948.0,0.58233761]
[1673132688509,1.40386224,16949.0,16948.0,0.58233761]
[1673132688770,0.44229358,16949.0,16948.0,0.58248761]
[1673132689290,1.04992558,16949.0,16948.0,0.58248761]
[1673132689545,0.17684108,16949.0,16948.0,0.58248761]
[1673132690305,0.18884108,16949.0,16948.0,0.64348761]
[1673132690621,0.18884108,16949.0,16948.0,0.64333761]
[1673132692881,0.18884108,16949.0,16948.0,1.14368779]
[1673132693162,0.012,16949.0,16948.0,0.64333761]
[1673132701453,0.005071,16949.0,16948.0,0.64333761]
[1673132716606,0.18191208,16949.0,16948.0,0.64333761]
[1673132717395,0.005071,16949.0,16948.0,0.64333761]
[1673132720716,0.18191208,16949.0,16948.0,0.64333761]
[1673132724838,0.44736458,16949.0,16948.0,0.64333761]
[1673132726125,0.44736458,16949.0,16948.0,0.64324677]
[1673132726600,0.62446016,16949.0,16948.0,0.64324677]
[1673132729682,0.44763325,16949.0,16948.0,1.14359695]
[1673132730184,0.44763325,16949.0,16948.0,0.64324677]
[1673132731184,0.80156991,16949.0,16948.0,0.64324677]
[1673132731444,0.44763325,16949.0,16948.0,0.64324677]
[1673132738469,0.62446016,16949.0,16948.0,0.64324677]
[1673132740263,0.62446016,16949.0,16948.0,1.13164077]
[1673132740806,0.44762056,16949.0,16948.0,0.64324677]
[1673132741266,0.44762056,16949.0,16948.0,1.13164077]
[1673132741510,0.44762056,16949.0,16948.0,0.64324677]
[1673132742073,0.44762056,16949.0,16948.0,1.13164077]
[1673132742246,0.44762056,16949.0,16948.0,1.63199095]
[1673132742982,0.44762056,16949.0,16948.0,1.13164077]
[1673132743232,0.44762056,16949.0,16948.0,0.64324677]
[1673132746374,0.44762056,16949.0,16948.0,1.13164077]
[1673132746637,0.44762056,16949.0,16948.0,1.63199095]
[1673132746893,0.44762056,16949.0,16948.0,2.22203095]
[1673132749160,0.18216806,16949.0,16948.0,2.99893336]
[1673132749410,0.005071,16949.0,16948.0,2.99893336]
[1673132749675,0.005071,16949.0,16948.0,3.26441571]
[1673132749928,1e-08,16949.0,16948.0,5.11408996]
[1673132750185,1e-08,16949.0,16948.0,4.62100819]
[1673132750473,1e-08,16949.0,16948.0,4.44409166]
[1673132750694,1e-08,16949.0,16948.0,4.00170863]
[1673132750943,1e-08,16949.0,16948.0,4.44412509]
[1673132751198,1e-08,16949.0,16948.0,4.54037867]
[1673132751969,1e-08,16949.0,16948.0,4.9823077]
[1673132752244,1e-08,16949.0,16948.0,4.98230372]
[1673132752740,0.04952394,16952.0,16948.0,4.92130372]
[1673132752991,0.04964394,16952.0,16951.0,0.6]
[1673132753251,0.04964394,16952.0,16951.0,2.17858618]
[1673132753538,0.00012,16952.0,16951.0,1.678236]
[1673132754304,0.00012,16952.0,16951.0,2.268171]
[1673132754793,0.17709706,16953.0,16951.0,2.268171]
[1673132755061,0.17709706,16953.0,16951.0,2.28022018]
[1673132755616,3.23068989,16954.0,16951.0,2.28022018]
[1673132755617,3.05385029,16954.0,16951.0,2.28022018]
[1673132755865,0.79938695,16954.0,16952.0,0.9521801]
[1673132756179,0.79938695,16954.0,16952.0,1.1420711]
[1673132756374,1.19938695,16954.0,16952.0,1.1420711]
[1673132756879,0.17709706,16953.0,16952.0,1.1420711]
[1673132757634,0.84545029,16954.0,16952.0,1.1680711]
[1673132757859,0.84545029,16954.0,16952.0,1.1420711]
[1673132758147,0.84545029,16954.0,16952.0,1.2390711]
[1673132758665,0.607632,16953.0,16952.0,1.1420711]
[1673132758925,0.84545029,16954.0,16952.0,1.1680711]
[1673132761256,0.607632,16953.0,16952.0,1.1680711]
[1673132761449,0.84545029,16954.0,16952.0,1.1680711]
[1673132762454,0.607632,16953.0,16952.0,1.1680711]
[1673132762705,0.84545029,16954.0,16952.0,1.1680711]
[1673132762960,0.57999779,16954.0,16952.0,1.1680711]
[1673132763493,0.57999779,16954.0,16952.0,1.1420711]
[1673132763794,0.57999779,16954.0,16952.0,1.2390711]
[1673132764009,0.57999779,16954.0,16952.0,1.1420711]
[1673132764264,0.607632,16953.0,16952.0,1.1680711]
[1673132764520,0.57999779,16954.0,16952.0,1.1680711]
[1673132765017,0.607632,16953.0,16952.0,1.1680711]
[1673132765275,0.57999779,16954.0,16952.0,1.1680711]
[1673132765789,0.607632,16953.0,16952.0,1.1680711]
[1673132766044,0.57999779,16954.0,16952.0,1.1680711]
[1673132766290,0.57999779,16954.0,16952.0,1.1420711]
[1673132766538,0.57999779,16954.0,16952.0,1.2390711]
[1673132767043,1.08034797,16954.0,16952.0,1.2390711]
[1673132767302,0.607632,16953.0,16952.0,1.1420711]
[1673132767553,1.08034797,16954.0,16952.0,1.1680711]
[1673132767802,0.57999779,16954.0,16952.0,1.1680711]
[1673132768296,0.57999779,16954.0,16952.0,1.1420711]
[1673132768803,0.17999779,16954.0,16952.0,1.1420711]
[1673132769281,0.00290073,16954.0,16952.0,1.1420711]
[1673132769526,0.57999779,16954.0,16952.0,1.2390711]
[1673132769750,0.607632,16953.0,16952.0,1.1420711]
[1673132770027,1.08034797,16954.0,16952.0,1.1420711]
[1673132770301,0.17999779,16954.0,16952.0,1.1680711]
[1673132772032,0.17999779,16954.0,16952.0,0.615891]
[1673132772296,0.607632,16953.0,16952.0,0.615891]
[1673132772542,1.08034797,16954.0,16952.0,0.615891]
[1673132773569,0.607632,16953.0,16952.0,0.615891]
[1673132773901,1.08034797,16954.0,16952.0,0.615891]
[1673132774117,1.08034797,16954.0,16952.0,0.61578284]
[1673132774382,0.607632,16953.0,16952.0,0.58978284]
[1673132774608,0.607632,16953.0,16952.0,0.68678284]
[1673132774865,1.08034797,16954.0,16952.0,0.58978284]
[1673132775370,0.607632,16953.0,16952.0,0.58978284]
[1673132775608,1.08034797,16954.0,16952.0,0.58978284]
[1673132776123,0.607632,16953.0,16952.0,0.58978284]
[1673132776372,1.08034797,16954.0,16952.0,0.61578284]
[1673132776872,1.007632,16953.0,16952.0,0.61578284]
[1673132777131,0.607632,16953.0,16952.0,0.58978284]
[1673132777346,1.08034797,16954.0,16952.0,0.68678284]
[1673132777596,1.08034797,16954.0,16952.0,0.58978284]
[1673132777815,0.607632,16953.0,16952.0,0.61578284]
[1673132778087,1.08034797,16954.0,16952.0,0.61578284]
[1673132778580,0.607632,16953.0,16952.0,0.61578284]
[1673132778839,1.08034797,16954.0,16952.0,0.61578284]
[1673132779086,1.08034797,16954.0,16952.0,0.58978284]
[1673132779328,1.34580047,16954.0,16952.0,0.68678284]
[1673132779579,1.08034797,16954.0,16952.0,0.58978284]
[1673132779827,0.607632,16953.0,16952.0,0.61578284]
[1673132780073,1.34580047,16954.0,16952.0,0.61578284]
[1673132780610,0.607632,16953.0,16952.0,0.58978284]
[1673132780879,1.007632,16953.0,16952.0,0.68678284]
[1673132781124,1.34580047,16954.0,16952.0,0.58978284]
[1673132781652,0.607632,16953.0,16952.0,0.58978284]
[1673132781911,1.34580047,16954.0,16952.0,0.58978284]
[1673132782177,1.34580047,16954.0,16952.0,0.61578284]
[1673132782411,1.007632,16953.0,16952.0,0.58978284]
[1673132782675,0.607632,16953.0,16952.0,0.68678284]
[1673132782923,1.34580047,16954.0,16952.0,0.58978284]
[1673132783205,1.34580047,16954.0,16952.0,0.61578284]
[1673132783451,1.69973713,16954.0,16952.0,0.61578284]
[1673132783693,1.69973713,16954.0,16952.0,0.58978284]
[1673132783953,0.17709706,16953.0,16952.0,0.68678284]
[1673132784437,1.69973713,16954.0,16952.0,0.68678284]
[1673132784940,1.69973713,16954.0,16952.0,0.58978284]
[1673132785187,1.69973713,16954.0,16952.0,0.61578284]
[1673132785443,0.57709706,16953.0,16952.0,0.61578284]
[1673132785689,0.17709706,16953.0,16952.0,0.61578284]
[1673132786520,0.17709706,16953.0,16952.0,0.58978284]
[1673132786710,0.17709706,16953.0,16952.0,0.68678284]
[1673132787477,0.44254956,16953.0,16952.0,0.68678284]
[1673132788245,0.44254956,16953.0,16952.0,1.34879335]
[1673132788537,0.17709706,16953.0,16952.0,1.34879335]
[1673132788766,0.17709706,16953.0,16952.0,1.93869335]
[1673132789017,0.17709706,16953.0,16952.0,2.42381243]
[1673132789530,0.44254956,16953.0,16952.0,2.42381243]
[1673132789755,0.44254956,16953.0,16952.0,1.93869335]
[1673132790006,0.44254956,16953.0,16952.0,2.42360451]
[1673132790267,0.44254956,16953.0,16952.0,2.42360452]
[1673132790522,0.44254956,16953.0,16952.0,2.4236045]
[1673132790782,0.44254956,16953.0,16952.0,1.93869335]
[1673132792289,0.44254956,16953.0,16952.0,1.93892045]
[1673132794980,0.44254956,16953.0,16952.0,2.42382565]
[1673132795223,0.44254956,16953.0,16952.0,1.93892045]
[1673132796007,0.44254956,16953.0,16952.0,2.42372165]
[1673132796231,0.44254956,16953.0,16952.0,2.4236694]
[1673132796531,0.17709706,16953.0,16952.0,1.93892045]
[1673132796754,0.44254956,16953.0,16952.0,1.93892045]
[1673132797494,0.44254956,16953.0,16952.0,2.42366929]
[1673132797744,0.17709706,16953.0,16952.0,3.08870513]
[1673132798252,0.62228989,16954.0,16952.0,2.99170513]
[1673132798253,0.79938695,16954.0,16952.0,2.99170513]
[1673132798502,0.44545029,16954.0,16952.0,2.64444213]
[1673132799227,0.44545029,16954.0,16952.0,2.50344213]
[1673132799449,0.79938695,16954.0,16953.0,0.53913298]
[1673132799697,0.79938695,16954.0,16953.0,1.12899898]
[1673132800154,0.44545029,16954.0,16953.0,1.12899898]
[1673132800883,0.44545029,16954.0,16953.0,1.71886498]
[1673132801123,0.44545029,16954.0,16953.0,1.74486498]
[1673132802367,0.62228989,16954.0,16953.0,0.615866]
[1673132802618,0.62228989,16954.0,16953.0,0.026]
[1673132806737,0.62228989,16954.0,16953.0,0.615866]
[1673132808013,1.06471072,16954.0,16953.0,0.615866]
[1673132808281,0.79925822,16954.0,16953.0,0.615866]
[1673132808563,1.06473477,16954.0,16953.0,0.615866]
[1673132809074,0.62231394,16954.0,16953.0,0.615866]
[1673132809862,1.06473477,16954.0,16953.0,0.615866]
[1673132810117,0.62231394,16954.0,16953.0,0.615866]
[1673132810364,1.06473644,16954.0,16953.0,0.615866]
[1673132810652,0.79925822,16954.0,16953.0,0.615866]
[1673132812484,1.06474058,16954.0,16953.0,0.615866]
[1673132812977,0.79925822,16954.0,16953.0,0.615866]
[1673132814745,1.06474871,16954.0,16953.0,0.615866]
[1673132814989,0.79925822,16954.0,16953.0,0.615866]
[1673132815274,0.62232818,16954.0,16953.0,0.615866]
[1673132819855,1.06474901,16954.0,16953.0,0.615866]
[1673132820380,0.79925822,16954.0,16953.0,0.615866]
[1673132821354,0.79482822,16954.0,16953.0,0.615866]
[1673132822382,1.06034588,16954.0,16953.0,0.615866]
[1673132823115,0.61792505,16954.0,16953.0,0.615866]
[1673132823872,1.06034588,16954.0,16953.0,0.615866]
[1673132825133,0.61792505,16954.0,16953.0,0.615866]
[1673132826354,1.06034588,16954.0,16953.0,0.615866]
[1673132826871,0.61792505,16954.0,16953.0,0.615866]
[1673132830596,1.06034588,16954.0,16953.0,0.615866]
[1673132831093,0.79482822,16954.0,16953.0,0.615866]
[1673132835948,1.0603963,16954.0,16953.0,0.615866]
[1673132837701,0.79482822,16954.0,16953.0,0.615866]
[1673132839251,1.06040593,16954.0,16953.0,0.615866]
[1673132839504,0.79482822,16954.0,16953.0,0.615866]
[1673132839756,1.06040682,16954.0,16953.0,1.104098]
[1673132840003,0.61798599,16954.0,16953.0,1.104098]
[1673132841007,0.61798599,16954.0,16953.0,0.615866]
[1673132841494,0.61798599,16954.0,16953.0,1.104096]
[1673132842258,0.61798599,16954.0,16953.0,0.615866]
[1673132842778,0.79482822,16954.0,16953.0,0.615866]
[1673132843785,0.79482822,16954.0,16953.0,0.61577325]
[1673132844030,1.19482822,16954.0,16953.0,0.61577325]
[1673132844806,0.79482822,16954.0,16953.0,0.61577325]
[1673132848560,0.79653564,16954.0,16953.0,0.61577325]
[1673132849132,0.44242083,16954.0,16953.0,0.61577325]
[1673132850666,0.79652691,16954.0,16953.0,0.61577325]
[1673132850924,0.79652656,16954.0,16953.0,0.61577325]
[1673132865694,0.79652656,16954.0,16953.0,0.02590725]
[1673132865945,0.44242083,16954.0,16953.0,0.02590725]
[1673132866673,0.7964975,16954.0,16953.0,0.02590725]
[1673132866879,0.79649819,16954.0,16953.0,0.02590725]
[1673132868648,1.19649819,16954.0,16953.0,0.0258029]
[1673132869825,0.79649819,16954.0,16953.0,0.0258029]
[1673132872211,0.79649819,16954.0,16953.0,0.5140329]
[1673132872711,0.79649819,16954.0,16953.0,0.0258029]
[1673132873499,0.79649819,16954.0,16953.0,0.5140329]
[1673132873982,0.79649819,16954.0,16953.0,0.0258029]
[1673132874986,0.79649819,16954.0,16953.0,0.5140329]
[1673132875460,0.79649819,16954.0,16953.0,0.0258029]
[1673132877396,0.79649819,16954.0,16953.0,0.5140329]
[1673132877848,0.79649819,16954.0,16953.0,0.0258029]
[1673132880510,0.44242083,16954.0,16953.0,0.0258029]
[1673132881689,0.79654051,16954.0,16953.0,0.0258029]
[1673132882452,0.44242083,16954.0,16953.0,0.0258029]
[1673132882969,0.79658558,16954.0,16953.0,0.0258029]
[1673132883212,0.44242083,16954.0,16953.0,0.0258029]
[1673132883686,0.79658282,16954.0,16953.0,0.52834026]
[1673132887392,0.79658282,16954.0,16953.0,1.01657026]
[1673132887616,0.79658282,16954.0,16953.0,0.52834026]
[1673132888078,0.79658282,16954.0,16953.0,1.01657026]
[1673132888331,0.79658282,16954.0,16953.0,0.52834026]
[1673132888812,0.79658282,16954.0,16953.0,1.01657026]
[1673132889309,0.79658282,16954.0,16953.0,0.52834026]
[1673132889772,0.79658282,16954.0,16953.0,1.01657026]
[1673132890467,0.79658282,16954.0,16953.0,0.52834026]
[1673132891376,0.79658282,16954.0,16953.0,1.01657026]
[1673132892078,0.79658282,16954.0,16953.0,0.52834026]
[1673132892523,0.79658282,16954.0,16953.0,1.01657026]
[1673132892974,0.79658282,16954.0,16953.0,0.52834026]
[1673132893485,1.19658282,16954.0,16953.0,1.0164556]
[1673132893703,1.19658282,16954.0,16953.0,0.5282256]
[1673132894171,0.79658282,16954.0,16953.0,0.5282256]
[1673132894644,0.79658282,16954.0,16953.0,1.0164556]
[1673132895078,0.79658282,16954.0,16953.0,0.5282256]
[1673132895581,0.79658282,16954.0,16953.0,1.0164556]
[1673132895814,0.79658282,16954.0,16953.0,0.5282256]
[1673132896475,0.79658282,16954.0,16953.0,1.0164556]
[1673132896719,0.79658282,16954.0,16953.0,0.5282256]
[1673132897238,0.79658282,16954.0,16953.0,1.0164556]
[1673132897676,0.79658282,16954.0,16953.0,0.5282256]
[1673132898634,0.79658282,16954.0,16953.0,1.0164556]
[1673132898886,0.79658282,16954.0,16953.0,0.5282256]
[1673132900403,0.79658282,16954.0,16953.0,1.0164556]
[1673132900844,0.79658282,16954.0,16953.0,0.5282256]
[1673132901205,0.79658282,16954.0,16953.0,1.0164556]
[1673132901373,0.79658282,16954.0,16953.0,0.5282256]
[1673132902122,0.44242083,16954.0,16953.0,0.5282256]
[1673132902838,0.44242083,16954.0,16953.0,1.0164556]
[1673132903314,0.79656738,16954.0,16953.0,1.0164556]
[1673132903559,0.44242083,16954.0,16953.0,1.0164556]
[1673132903777,0.79656737,16954.0,16953.0,1.0164556]
[1673132904219,1.15071388,16954.0,16953.0,0.5282256]
[1673132905381,1.15071388,16954.0,16953.0,1.0164556]
[1673132905636,1.15071388,16954.0,16953.0,0.5282256]
[1673132906065,1.15071388,16954.0,16953.0,1.0164556]
[1673132906589,0.79656737,16954.0,16953.0,0.5282256]
[1673132907291,0.79656737,16954.0,16953.0,1.0164556]
[1673132907504,1.15073059,16954.0,16953.0,1.0164556]
[1673132907745,1.15073059,16954.0,16953.0,0.5282256]
[1673132908722,0.79656737,16954.0,16953.0,0.5282256]
[1673132909453,1.15073127,16954.0,16953.0,1.0164556]
[1673132909697,0.79656737,16954.0,16953.0,0.5282256]
[1673132910454,0.79656737,16954.0,16953.0,1.0164556]
[1673132910950,1.1507294,16954.0,16953.0,0.5282256]
[1673132911940,1.1507294,16954.0,16953.0,1.0164556]
[1673132912430,1.1507294,16954.0,16953.0,0.5282256]
[1673132912936,1.1507294,16954.0,16953.0,1.0164556]
[1673132913463,1.1507294,16954.0,16953.0,0.5282256]
[1673132914037,1.1507294,16954.0,16953.0,1.0164556]
[1673132914443,1.1507294,16954.0,16953.0,0.5282256]
[1673132917962,1.1507294,16954.0,16953.0,0.52815178]
[1673132918661,1.1507294,16954.0,16953.0,1.11801778]
[1673132921888,1.1507294,16954.0,16953.0,1.60624778]
[1673132922347,1.1507294,16954.0,16953.0,1.11801778]
[1673132922873,1.1507294,16954.0,16953.0,1.60624778]
[1673132923900,1.1507294,16954.0,16953.0,1.11801778]
[1673132924422,1.1507294,16954.0,16953.0,1.60624778]
[1673132925164,1.1507294,16954.0,16953.0,1.11801778]
[1673132926116,1.1507294,16954.0,16953.0,1.60624778]
[1673132926557,1.1507294,16954.0,16953.0,1.11801778]
[1673132928144,1.7583614,16954.0,16953.0,1.11801778]
[1673132928360,1.1507294,16954.0,16953.0,1.11801778]
[1673132930603,1.7583614,16954.0,16953.0,1.11801778]
[1673132931399,1.1507294,16954.0,16953.0,1.11801778]
[1673132931877,1.7583614,16954.0,16953.0,1.11801778]
[1673132932126,1.1507294,16954.0,16953.0,1.11801778]
[1673132934628,1.7583614,16954.0,16953.0,1.11801778]
[1673132934884,1.1507294,16954.0,16953.0,1.11801778]
[1673132935396,1.40419937,16954.0,16953.0,0.52815178]
[1673132935945,0.79656737,16954.0,16953.0,0.52815178]
[1673132937449,1.15073494,16954.0,16953.0,0.52815178]
[1673132940018,1.15073494,16954.0,16953.0,1.11801778]
[1673132950414,1.15073759,16954.0,16953.0,1.11794149]
[1673132956483,1.41634977,16954.0,16953.0,1.11794149]
[1673132957132,1.15073759,16954.0,16953.0,1.11794149]
[1673132957348,1.41634838,16954.0,16953.0,1.11794149]
[1673132958518,0.97392755,16954.0,16953.0,1.11794149]
[1673132959324,1.41634838,16954.0,16953.0,1.11794149]